fUSD/lending_fUSD_20260622
["ID","MTS","AMOUNT","RATE_DAILY","PERIOD"]
[426059361,1782131602000,-203.96390154,0.00033123,120]
[426059350,1782131602000,-1543.946,0.000331,20]
[426059362,1782131602000,-585.84,0.0003315,2]
[426059367,1782131602000,-947.67,0.0003315,2]
[426059366,1782131602000,-513.94,0.0003315,2]
[426059364,1782131602000,-970.83,0.0003315,2]
[426059365,1782131602000,-633.7,0.0003315,2]
[426059372,1782131602000,-2673.46,0.0003315,2]
[426059371,1782131602000,-666.68,0.0003315,2]
[426059370,1782131602000,-1276.25,0.0003315,2]
[426059330,1782131602000,-150.0,0.0003308,2]
[426059369,1782131602000,-539.78,0.0003315,2]
[426059354,1782131602000,-1543.94,0.000331,20]
[426059360,1782131602000,-279.39346794,0.00033123,120]
[426059351,1782131602000,-1543.94,0.000331,20]
[426059353,1782131602000,-1543.946,0.000331,30]
[426059329,1782131602000,-150.0,0.0003308,2]
[426059334,1782131602000,-1284.28513839,0.00033084,2]
[426059335,1782131602000,-1333.1246135,0.00033084,2]
[426059336,1782131602000,-1389.54936298,0.00033084,2]
[426059337,1782131602000,-1382.58674241,0.00033084,2]
[426059332,1782131602000,-150.0,0.0003308,2]
[426059338,1782131602000,-1581.52772369,0.00033084,2]
[426059339,1782131602000,-1483.27003483,0.00033084,2]
[426059333,1782131602000,-150.0,0.0003308,2]
[426059340,1782131602000,-1589.44795559,0.00033084,2]
[426059341,1782131602000,-1629.42090018,0.00033084,2]
[426059343,1782131602000,-1450.97469627,0.00033084,2]
[426059345,1782131602000,-2841.96086138,0.000331,2]
[426059344,1782131602000,-1500.0,0.000331,2]
[426059347,1782131602000,-1543.946,0.000331,20]
[426059346,1782131602000,-1543.946,0.000331,20]
[426059348,1782131602000,-1543.94,0.000331,20]
[426059342,1782131602000,-1547.46197469,0.00033084,2]
[426059349,1782131602000,-1543.946,0.000331,30]
[426059401,1782131603000,-548.72,0.0003315,2]
[426059408,1782131603000,-617.49,0.0003315,2]
[426059407,1782131603000,-531.43,0.0003315,2]
[426059411,1782131603000,-856.58,0.0003315,2]
[426059402,1782131603000,-691.46,0.0003315,2]
[426059406,1782131603000,-703.04,0.0003315,2]
[426059405,1782131603000,-566.83699293,0.0003315,2]
[426059403,1782131603000,-725.12,0.0003315,2]
[426059410,1782131603000,-944.23,0.0003315,2]
[426059404,1782131603000,-1255.65,0.0003315,2]
[426059409,1782131603000,-1040.83,0.0003315,2]
[426059422,1782131603000,-554.01,0.0003315,2]
[426059412,1782131603000,-850.25,0.0003315,2]
[426059415,1782131603000,-523.74,0.0003315,2]
[426059416,1782131603000,-1501.08,0.0003315,2]
[426059417,1782131603000,-936.99,0.0003315,2]
[426059414,1782131603000,-608.59,0.0003315,2]
[426059419,1782131603000,-786.59,0.0003315,2]
[426059418,1782131603000,-1046.3,0.0003315,2]
[426059420,1782131603000,-670.91,0.0003315,2]
[426059421,1782131603000,-540.55,0.0003315,2]
[426059426,1782131603000,-790.07,0.0003315,2]
[426059399,1782131603000,-593.04,0.0003315,2]
[426059413,1782131603000,-584.59,0.0003315,2]
[426059392,1782131603000,-562.32,0.0003315,2]
[426059379,1782131603000,-661.35,0.0003315,2]
[426059400,1782131603000,-1181.38,0.0003315,2]
[426059373,1782131603000,-755.16,0.0003315,2]
[426059376,1782131603000,-557.46,0.0003315,2]
[426059374,1782131603000,-695.0,0.0003315,2]
[426059377,1782131603000,-1180.24,0.0003315,2]
[426059424,1782131603000,-519.46,0.0003315,2]
[426059375,1782131603000,-500.51,0.0003315,2]
[426059378,1782131603000,-500.0,0.0003315,2]
[426059380,1782131603000,-739.37,0.0003315,2]
[426059383,1782131603000,-511.5,0.0003315,2]
[426059389,1782131603000,-500.0,0.0003315,2]
[426059385,1782131603000,-614.75,0.0003315,2]
[426059396,1782131603000,-528.44,0.0003315,2]
[426059382,1782131603000,-714.12,0.0003315,2]
[426059384,1782131603000,-586.89,0.0003315,2]
[426059381,1782131603000,-983.84,0.0003315,2]
[426059390,1782131603000,-688.82,0.0003315,2]
[426059387,1782131603000,-1137.32,0.0003315,2]
[426059388,1782131603000,-500.0,0.0003315,2]
[426059391,1782131603000,-515.21,0.0003315,2]
[426059397,1782131603000,-678.94,0.0003315,2]
[426059394,1782131603000,-807.35,0.0003315,2]
[426059393,1782131603000,-163.75114684,0.0003315,2]
[426059398,1782131603000,-501.54,0.0003315,2]
[426059395,1782131603000,-721.3,0.0003315,2]
[426059386,1782131603000,-1404.94,0.0003315,2]
[426059427,1782131603000,-504.09,0.0003315,2]
[426059423,1782131603000,-718.0,0.0003315,2]
[426059432,1782131603000,-564.32,0.0003315,2]
[426059457,1782131603000,-500.0,0.0003315,2]
[426059459,1782131603000,-869.96,0.0003315,2]
[426059467,1782131603000,-645.88224765,0.0003315,2]
[426059464,1782131603000,-758.34,0.0003315,2]
[426059468,1782131603000,-784.71,0.0003315,2]
[426059465,1782131603000,-940.86,0.0003315,2]
[426059463,1782131603000,-501.26,0.0003315,2]
[426059460,1782131603000,-635.95,0.0003315,2]
[426059462,1782131603000,-500.0,0.0003315,2]
[426059461,1782131603000,-500.0,0.0003315,2]
[426059466,1782131603000,-873.39,0.0003315,2]
[426059458,1782131603000,-739.67,0.0003315,2]
[426059470,1782131603000,-600.74,0.0003315,2]
[426059480,1782131603000,-986.53,0.0003315,2]
[426059473,1782131603000,-636.07,0.0003315,2]
[426059471,1782131603000,-3639.77,0.0003315,2]
[426059474,1782131603000,-510.38,0.0003315,2]
[426059469,1782131603000,-1443.16,0.0003315,2]
[426059472,1782131603000,-1050.73,0.0003315,2]
[426059478,1782131603000,-541.49,0.0003315,2]
[426059475,1782131603000,-700.32,0.0003315,2]
[426059477,1782131603000,-526.09,0.0003315,2]
[426059425,1782131603000,-666.78,0.0003315,2]
[426059479,1782131603000,-590.33,0.0003315,2]
[426059481,1782131603000,-1014.22,0.0003315,2]
[426059456,1782131603000,-4029.46,0.0003315,2]
[426059453,1782131603000,-3364.63,0.0003315,2]
[426059476,1782131603000,-945.27,0.0003315,2]
[426059450,1782131603000,-788.02,0.0003315,2]
[426059448,1782131603000,-1069.93,0.0003315,2]
[426059434,1782131603000,-426.42,0.0003315,2]
[426059428,1782131603000,-834.64,0.0003315,2]
[426059433,1782131603000,-900.89,0.0003315,2]
[426059431,1782131603000,-853.2,0.0003315,2]
[426059430,1782131603000,-510.33,0.0003315,2]
[426059435,1782131603000,-500.0,0.0003315,2]
[426059444,1782131603000,-500.0,0.0003315,2]
[426059445,1782131603000,-1250.12,0.0003315,2]
[426059446,1782131603000,-577.94,0.0003315,2]
[426059436,1782131603000,-715.39,0.0003315,2]
[426059439,1782131603000,-992.54,0.0003315,2]
[426059429,1782131603000,-790.49,0.0003315,2]
[426059440,1782131603000,-617.25,0.0003315,2]
[426059437,1782131603000,-636.73,0.0003315,2]
[426059454,1782131603000,-879.63,0.0003315,2]
[426059449,1782131603000,-521.74,0.0003315,2]
[426059451,1782131603000,-740.41,0.0003315,2]
[426059452,1782131603000,-689.12,0.0003315,2]
[426059455,1782131603000,-500.0,0.0003315,2]
[426059443,1782131603000,-524.23,0.0003315,2]
[426059441,1782131603000,-947.18,0.0003315,2]
[426059438,1782131603000,-702.96,0.0003315,2]
[426059442,1782131603000,-500.0,0.0003315,2]
[426059447,1782131603000,-858.12,0.0003315,2]
[426059505,1782131604000,-500.0,0.0003315,2]
[426059515,1782131604000,-566.57,0.0003315,2]
[426059504,1782131604000,-806.98,0.0003315,2]
[426059507,1782131604000,-519.81,0.0003315,2]
[426059512,1782131604000,-542.05,0.0003315,2]
[426059513,1782131604000,-2693.07,0.0003315,2]
[426059518,1782131604000,-593.89,0.0003315,2]
[426059514,1782131604000,-733.03,0.0003315,2]
[426059517,1782131604000,-804.78,0.0003315,2]
[426059506,1782131604000,-3183.96,0.0003315,2]
[426059524,1782131604000,-698.47,0.0003315,2]
[426059520,1782131604000,-500.0,0.0003315,2]
[426059516,1782131604000,-861.51,0.0003315,2]
[426059522,1782131604000,-2746.21,0.0003315,2]
[426059519,1782131604000,-2103.48,0.0003315,2]
[426059523,1782131604000,-785.53,0.0003315,2]
[426059525,1782131604000,-1706.4,0.0003315,2]
[426059529,1782131604000,-830.91,0.0003315,2]
[426059527,1782131604000,-626.49,0.0003315,2]
[426059526,1782131604000,-1155.68,0.0003315,2]
[426059511,1782131604000,-512.67,0.0003315,2]
[426059528,1782131604000,-585.33,0.0003315,2]
[426059521,1782131604000,-554.28,0.0003315,2]
[426059510,1782131604000,-626.46,0.0003315,2]
[426059492,1782131604000,-500.0,0.0003315,2]
[426059503,1782131604000,-1075.88,0.0003315,2]
[426059530,1782131604000,-699.61,0.0003315,2]
[426059485,1782131604000,-846.46,0.0003315,2]
[426059490,1782131604000,-739.97,0.0003315,2]
[426059491,1782131604000,-559.62,0.0003315,2]
[426059488,1782131604000,-700.09,0.0003315,2]
[426059483,1782131604000,-500.0,0.0003315,2]
[426059487,1782131604000,-571.32,0.0003315,2]
[426059484,1782131604000,-696.96,0.0003315,2]
[426059482,1782131604000,-694.68,0.0003315,2]
[426059489,1782131604000,-562.61,0.0003315,2]
[426059502,1782131604000,-1369.37,0.0003315,2]
[426059486,1782131604000,-928.29,0.0003315,2]
[426059495,1782131604000,-500.0,0.0003315,2]
[426059496,1782131604000,-500.0,0.0003315,2]
[426059497,1782131604000,-905.07,0.0003315,2]
[426059499,1782131604000,-558.4,0.0003315,2]
[426059498,1782131604000,-816.43,0.0003315,2]
[426059494,1782131604000,-3267.88,0.0003315,2]
[426059500,1782131604000,-827.96,0.0003315,2]
[426059501,1782131604000,-1352.1,0.0003315,2]
[426059508,1782131604000,-322.91357839,0.0003315,2]
[426059509,1782131604000,-596.6,0.0003315,2]
[426059493,1782131604000,-739.97,0.0003315,2]
[426059531,1782131604000,-1326.5,0.0003315,2]
[426059550,1782131604000,-1838.48,0.0003315,2]
[426059532,1782131604000,-500.0,0.0003315,2]
[426059559,1782131604000,-5138.93,0.0003315,2]
[426059560,1782131604000,-847.85,0.0003315,2]
[426059563,1782131604000,-2000.0,0.0003315,2]
[426059569,1782131604000,-685.72,0.0003315,2]
[426059565,1782131604000,-3373.56,0.0003315,2]
[426059567,1782131604000,-570.0,0.0003315,2]
[426059571,1782131604000,-557.86,0.0003315,2]
[426059564,1782131604000,-8197.77,0.0003315,2]
[426059566,1782131604000,-687.7,0.0003315,2]
[426059568,1782131604000,-713.2,0.0003315,2]
[426059556,1782131604000,-2940.44,0.0003315,2]
[426059573,1782131604000,-591.59,0.0003315,2]
[426059570,1782131604000,-1010.5,0.0003315,2]
[426059575,1782131604000,-7121.05,0.0003315,2]
[426059574,1782131604000,-1413.15,0.0003315,2]
[426059576,1782131604000,-657.57,0.0003315,2]
[426059577,1782131604000,-4227.56,0.0003315,2]
[426059578,1782131604000,-6843.28,0.0003315,2]
[426059580,1782131604000,-4492.09,0.0003315,2]
[426059581,1782131604000,-6597.51,0.0003315,2]
[426059579,1782131604000,-1169.7,0.0003315,2]
[426059533,1782131604000,-500.0,0.0003315,2]
[426059572,1782131604000,-589.62,0.0003315,2]
[426059554,1782131604000,-6186.73,0.0003315,2]
[426059582,1782131604000,-7004.08,0.0003315,2]
[426059553,1782131604000,-4341.82,0.0003315,2]
[426059535,1782131604000,-1302.85,0.0003315,2]
[426059561,1782131604000,-1204.89,0.0003315,2]
[426059537,1782131604000,-636.95,0.0003315,2]
[426059534,1782131604000,-604.11,0.0003315,2]
[426059536,1782131604000,-553.22,0.0003315,2]
[426059540,1782131604000,-784.56,0.0003315,2]
[426059541,1782131604000,-1158.24,0.0003315,2]
[426059539,1782131604000,-500.0,0.0003315,2]
[426059547,1782131604000,-3395.17,0.0003315,2]
[426059551,1782131604000,-711.86,0.0003315,2]
[426059546,1782131604000,-1496.54,0.0003315,2]
[426059538,1782131604000,-3549.98,0.0003315,2]
[426059549,1782131604000,-1362.17,0.0003315,2]
[426059542,1782131604000,-519.8,0.0003315,2]
[426059545,1782131604000,-1271.92,0.0003315,2]
[426059543,1782131604000,-567.35,0.0003315,2]
[426059548,1782131604000,-695.59,0.0003315,2]
[426059583,1782131604000,-245.1,0.0003315,2]
[426059558,1782131604000,-616.23,0.0003315,2]
[426059562,1782131604000,-849.12,0.0003315,2]
[426059552,1782131604000,-504.85,0.0003315,2]
[426059555,1782131604000,-4113.41,0.0003315,2]
[426059544,1782131604000,-546.18,0.0003315,2]
[426059557,1782131604000,-11028.8,0.0003315,2]
[426059617,1782131605000,-471.88890446,0.0003315,2]
[426059615,1782131605000,-948.85,0.0003315,2]
[426059610,1782131605000,-537.51,0.0003315,2]
[426059614,1782131605000,-1013.21,0.0003315,2]
[426059611,1782131605000,-777.53,0.0003315,2]
[426059613,1782131605000,-879.74,0.0003315,2]
[426059609,1782131605000,-1281.85,0.0003315,2]
[426059612,1782131605000,-805.85,0.0003315,2]
[426059616,1782131605000,-984.2,0.0003315,2]
[426059624,1782131605000,-284394.99280616,0.000332,2]
[426059622,1782131605000,-1360.0,0.00033184,2]
[426059621,1782131605000,-150.109598,0.00033177,120]
[426059623,1782131605000,-801.53,0.00033191,2]
[426059619,1782131605000,-294.42312533,0.00033151,120]
[426059620,1782131605000,-150.0,0.00033156,120]
[426059625,1782131605000,-1947.0,0.00033203,7]
[426059627,1782131605000,-124358.33367768,0.0003325,2]
[426059629,1782131605000,-303.2419425,0.00033273,120]
[426059606,1782131605000,-895.47,0.0003315,2]
[426059631,1782131605000,-374.0,0.00033282,5]
[426059618,1782131605000,-340.68764187,0.00033151,120]
[426059608,1782131605000,-554.0,0.0003315,2]
[426059594,1782131605000,-5625.93,0.0003315,2]
[426059607,1782131605000,-781.2,0.0003315,2]
[426059628,1782131605000,-47447.41290034,0.0003325,2]
[426059585,1782131605000,-658.07,0.0003315,2]
[426059584,1782131605000,-9672.86,0.0003315,2]
[426059588,1782131605000,-500.0,0.0003315,2]
[426059590,1782131605000,-4376.06,0.0003315,2]
[426059593,1782131605000,-500.0,0.0003315,120]
[426059586,1782131605000,-909.43,0.0003315,2]
[426059589,1782131605000,-8639.58,0.0003315,2]
[426059592,1782131605000,-919.77,0.0003315,2]
[426059587,1782131605000,-1002.58,0.0003315,2]
[426059591,1782131605000,-8686.62,0.0003315,2]
[426059595,1782131605000,-775.18,0.0003315,2]
[426059597,1782131605000,-1087.5,0.0003315,2]
[426059596,1782131605000,-844.33,0.0003315,2]
[426059598,1782131605000,-912.76,0.0003315,2]
[426059599,1782131605000,-456.89940857,0.0003315,2]
[426059600,1782131605000,-729.92,0.0003315,2]
[426059603,1782131605000,-4175.97,0.0003315,2]
[426059604,1782131605000,-351.61113694,0.0003315,2]
[426059601,1782131605000,-2905.9,0.0003315,2]
[426059602,1782131605000,-2044.4,0.0003315,2]
[426059605,1782131605000,-513.61,0.0003315,2]
[426059630,1782131605000,-204.69773429,0.00033273,120]
[426059651,1782131605000,-1724.88,0.00033424,2]
[426059635,1782131605000,-508.85161862,0.00033333,7]
[426059662,1782131605000,-661.35,0.00033424,2]
[426059660,1782131605000,-1180.24,0.00033424,2]
[426059666,1782131605000,-511.5,0.00033424,2]
[426059661,1782131605000,-216.38,0.00033424,2]
[426059665,1782131605000,-714.12,0.00033424,2]
[426059659,1782131605000,-557.46,0.00033424,2]
[426059633,1782131605000,-1084.53738011,0.000333,120]
[426059663,1782131605000,-739.37,0.00033424,2]
[426059668,1782131605000,-614.75,0.00033424,2]
[426059667,1782131605000,-586.89,0.00033424,2]
[426059670,1782131605000,-283.85443531,0.00033424,2]
[426059673,1782131605000,-688.82,0.00033424,2]
[426059672,1782131605000,-500.0,0.00033424,2]
[426059669,1782131605000,-1404.94,0.00033424,2]
[426059671,1782131605000,-1137.32,0.00033424,2]
[426059675,1782131605000,-562.32,0.00033424,2]
[426059678,1782131605000,-528.44,0.00033424,2]
[426059677,1782131605000,-721.3,0.00033424,2]
[426059676,1782131605000,-807.35,0.00033424,2]
[426059674,1782131605000,-515.21,0.00033424,2]
[426059679,1782131605000,-605.59176814,0.00033424,2]
[426059658,1782131605000,-500.51,0.00033424,2]
[426059656,1782131605000,-755.16,0.00033424,2]
[426059664,1782131605000,-983.84,0.00033424,2]
[426059653,1782131605000,-1276.25,0.00033424,2]
[426059634,1782131605000,-151.5,0.00033323,7]
[426059632,1782131605000,-1500.0,0.000333,2]
[426059655,1782131605000,-2673.46,0.00033424,2]
[426059626,1782131605000,-1388.0,0.00033203,7]
[426059638,1782131605000,-2243.413,0.000334,30]
[426059637,1782131605000,-2243.413,0.000334,20]
[426059639,1782131605000,-2243.41,0.000334,20]
[426059640,1782131605000,-1500.0,0.000334,2]
[426059644,1782131605000,-1796.02,0.000334,20]
[426059646,1782131605000,-680.9,0.00033424,2]
[426059636,1782131605000,-200.75935455,0.00033348,14]
[426059643,1782131605000,-1796.027,0.000334,10]
[426059641,1782131605000,-152.03624673,0.000334,20]
[426059657,1782131605000,-695.0,0.00033424,2]
[426059654,1782131605000,-666.68,0.00033424,2]
[426059647,1782131605000,-970.83,0.00033424,2]
[426059652,1782131605000,-539.78,0.00033424,2]
[426059650,1782131605000,-947.67,0.00033424,2]
[426059648,1782131605000,-633.7,0.00033424,2]
[426059642,1782131605000,-1796.027,0.000334,30]
[426059645,1782131605000,-585.84,0.00033424,2]
[426059649,1782131605000,-513.94,0.00033424,2]
[426059689,1782131606000,-703.04,0.00033424,2]
[426059692,1782131606000,-1040.83,0.00033424,2]
[426059693,1782131606000,-944.23,0.00033424,2]
[426059687,1782131606000,-725.12,0.00033424,2]
[426059694,1782131606000,-856.58,0.00033424,2]
[426059691,1782131606000,-617.49,0.00033424,2]
[426059685,1782131606000,-548.72,0.00033424,2]
[426059683,1782131606000,-593.04,0.00033424,2]
[426059690,1782131606000,-531.43,0.00033424,2]
[426059697,1782131606000,-608.59,0.00033424,2]
[426059695,1782131606000,-850.25,0.00033424,2]
[426059684,1782131606000,-1181.38,0.00033424,2]
[426059682,1782131606000,-501.54,0.00033424,2]
[426059681,1782131606000,-73.34823186,0.00033424,2]
[426059680,1782131606000,-500.0,0.00028493,2]
[426059688,1782131606000,-1255.65,0.00033424,2]
[426059696,1782131606000,-584.59,0.00033424,2]
[426059686,1782131606000,-691.46,0.00033424,2]
[426059705,1782131606000,-554.01,0.00033424,2]
[426059714,1782131606000,-1111.561301,0.00027397,2]
[426059713,1782131606000,-1261.81,0.00027397,2]
[426059712,1782131606000,-500.0,0.00027397,2]
[426059715,1782131606000,-19273.35821479,0.00027397,10]
[426059711,1782131606000,-500.0,0.00027397,2]
[426059710,1782131606000,-500.0,0.00027397,2]
[426059708,1782131606000,-165.90860806,0.00014988,2]
[426059709,1782131606000,-902.24510984,0.0001499,2]
[426059704,1782131606000,-540.55,0.00033424,2]
[426059706,1782131606000,-128.17100811,0.00033424,2]
[426059701,1782131606000,-1046.3,0.00033424,2]
[426059702,1782131606000,-786.59,0.00033424,2]
[426059698,1782131606000,-523.74,0.00033424,2]
[426059700,1782131606000,-936.99,0.00033424,2]
[426059703,1782131606000,-670.91,0.00033424,2]
[426059707,1782131606000,-736.33650178,0.00014988,2]
[426059699,1782131606000,-1501.08,0.00033424,2]
[426059716,1782131608000,-937.16849219,0.00010401,2]
[426059719,1782131608000,-282.94100212,0.00010401,2]
[426059720,1782131608000,-937.16849219,0.00010401,2]
[426059721,1782131608000,-310.25908261,0.00010401,2]
[426059718,1782131608000,-654.22749007,0.00010401,2]
[426059717,1782131608000,-937.16849219,0.00010401,2]
[426059722,1782131658000,-300.0,0.000104,2]
[426059724,1782131658000,-176.90940958,0.00010401,2]
[426059723,1782131658000,-150.0,0.000104,2]
[426059725,1782131661000,-216.35787048,0.00010401,2]
[426059727,1782131711000,-500.0,0.000104,2]
[426059728,1782131724000,-575.4789275,0.000104,2]
[426059729,1782131765000,-357.94868589,0.000104,2]
[426059730,1782131779000,-112.54562241,0.00010401,2]
[426059731,1782131818000,-216.35787048,0.00010406,2]
[426059732,1782131820000,1781.7,0.00011,30]
[426059733,1782131822000,1781.71,0.00011014,30]
[426059734,1782131824000,2375.6,0.00011,60]
[426059735,1782131827000,2375.61,0.00011014,60]
[426059736,1782131829000,1781.7,0.00011,120]
[426059737,1782131831000,1781.71,0.0001155,120]
[426059738,1782131872000,-216.35787048,0.00010407,2]
[426059739,1782131926000,-250.0,0.00010455,2]
[426059740,1782131957000,151.62097125,0.00030136,120]
[426059741,1782131963000,204.69773429,0.00030136,120]
[426059742,1782131979000,-150.0,0.00010705,2]
[426059743,1782132025000,-250.0,0.00010771,2]
[426059746,1782132071000,-170.27,0.00010899,2]
[426059747,1782132124000,-5552.56994861,0.00010898,2]
[426059748,1782132138000,-1732.01136399,0.00010898,2]
[426059753,1782132296000,-153.0,0.00010949,2]
[426059749,1782132296000,-1127.29336702,0.00010949,2]
[426059752,1782132296000,-151.0,0.00010949,2]
[426059750,1782132296000,-151.0,0.00010949,2]
[426059758,1782132296000,-150.0,0.00010949,2]
[426059754,1782132296000,-150.0,0.00010949,2]
[426059755,1782132296000,-1168.98700838,0.00010949,2]
[426059751,1782132296000,-150.0,0.00010949,2]
[426059757,1782132296000,-151.0,0.00010949,2]
[426059756,1782132296000,-151.0,0.00010949,2]
[426059759,1782132314000,150.0,0.00030137,120]
[426059760,1782132329000,-150.0,0.00011057,2]
[426059761,1782132329000,-500.0,0.00011057,2]
[426059762,1782132329000,-500.0,0.00011057,2]
[426059764,1782132329000,-500.0,0.00011057,2]
[426059765,1782132329000,-350.0,0.00011057,2]
[426059763,1782132329000,-500.0,0.00011057,2]
[426059775,1782132354000,-500.0,0.00011057,2]
[426059767,1782132354000,-152.0,0.00011057,2]
[426059768,1782132354000,-230.43274304,0.00011057,2]
[426059770,1782132354000,-500.0,0.00011057,2]
[426059771,1782132354000,-500.0,0.00011057,2]
[426059769,1782132354000,-150.0,0.00011057,2]
[426059772,1782132354000,-500.0,0.00011057,2]
[426059773,1782132354000,-500.0,0.00011057,2]
[426059774,1782132354000,-500.0,0.00011057,2]
[426059766,1782132354000,-500.0,0.00011057,2]
[426059777,1782132354000,-500.0,0.00011057,2]
[426059779,1782132354000,-500.0,0.00011057,2]
[426059776,1782132354000,-500.0,0.00011057,2]
[426059785,1782132354000,-500.0,0.00011057,2]
[426059786,1782132354000,-500.0,0.00011057,2]
[426059782,1782132354000,-500.0,0.00011057,2]
[426059787,1782132354000,-467.56725696,0.00011057,2]
[426059783,1782132354000,-500.0,0.00011057,2]
[426059781,1782132354000,-500.0,0.00011057,2]
[426059780,1782132354000,-500.0,0.00011057,2]
[426059778,1782132354000,-500.0,0.00011057,2]
[426059784,1782132354000,-500.0,0.00011057,2]
[426059796,1782132356000,-500.0,0.00011057,2]
[426059788,1782132356000,-32.43274304,0.00011057,2]
[426059790,1782132356000,-500.0,0.00011057,2]
[426059789,1782132356000,-500.0,0.00011057,2]
[426059792,1782132356000,-500.0,0.00011057,2]
[426059793,1782132356000,-500.0,0.00011057,2]
[426059794,1782132356000,-500.0,0.00011057,2]
[426059795,1782132356000,-500.0,0.00011057,2]
[426059797,1782132356000,-500.0,0.00011057,2]
[426059791,1782132356000,-500.0,0.00011057,2]
[426059800,1782132356000,-500.0,0.00011057,2]
[426059807,1782132356000,-500.0,0.00011057,2]
[426059805,1782132356000,-500.0,0.00011057,2]
[426059804,1782132356000,-500.0,0.00011057,2]
[426059806,1782132356000,-500.0,0.00011057,2]
[426059798,1782132356000,-500.0,0.00011057,2]
[426059802,1782132356000,-500.0,0.00011057,2]
[426059799,1782132356000,-500.0,0.00011057,2]
[426059801,1782132356000,-500.0,0.00011057,2]
[426059803,1782132356000,-500.0,0.00011057,2]
[426059811,1782132357000,-500.0,0.00011057,2]
[426059810,1782132357000,-500.0,0.00011057,2]
[426059809,1782132357000,-89.7845996,0.00011057,2]
[426059808,1782132357000,-467.56725696,0.00011057,2]
[426059812,1782132358000,-500.0,0.00011057,2]
[426059813,1782132358000,-500.0,0.00011057,2]
[426059815,1782132358000,-500.0,0.00011057,2]
[426059816,1782132358000,-500.0,0.00011057,2]
[426059820,1782132358000,-500.0,0.00011057,2]
[426059819,1782132358000,-500.0,0.00011057,2]
[426059818,1782132358000,-500.0,0.00011057,2]
[426059823,1782132358000,-250.0,0.00011057,2]
[426059814,1782132358000,-500.0,0.00011057,2]
[426059824,1782132358000,-500.0,0.00011057,2]
[426059822,1782132358000,-500.0,0.00011057,2]
[426059830,1782132358000,-160.2154004,0.00011057,2]
[426059829,1782132358000,-500.0,0.00011057,2]
[426059827,1782132358000,-500.0,0.00011057,2]
[426059817,1782132358000,-500.0,0.00011057,2]
[426059825,1782132358000,-500.0,0.00011057,2]
[426059826,1782132358000,-500.0,0.00011057,2]
[426059821,1782132358000,-500.0,0.00011057,2]
[426059828,1782132358000,-500.0,0.00011057,2]
[426059831,1782132371000,-150.0,0.00011057,2]
[426059832,1782132371000,-339.7845996,0.00011057,2]
[426059833,1782132371000,-500.0,0.00011057,2]
[426059834,1782132371000,-500.0,0.00011057,2]
[426059835,1782132371000,-500.0,0.00011057,2]
[426059836,1782132371000,-500.0,0.00011057,2]
[426059838,1782132371000,-500.0,0.00011057,2]
[426059839,1782132371000,-500.0,0.00011057,2]
[426059837,1782132371000,-500.0,0.00011057,2]
[426059842,1782132371000,-150.0,0.00011058,2]